fUSD/lending_fUSD_20260329
["ID","MTS","AMOUNT","RATE_DAILY","PERIOD"]
[419010635,1774749043033,-500.0,0.00015274,2]
[419010636,1774749043043,-500.0,0.00015274,2]
[419010637,1774749043054,-500.0,0.00015274,2]
[419010638,1774749043064,-500.0,0.00015274,2]
[419010639,1774749043074,-182.16957206,0.00015274,2]
[419010640,1774749043084,-500.0,0.00015274,2]
[419010641,1774749043093,-500.0,0.00015274,2]
[419010642,1774749043103,-500.0,0.00015274,2]
[419010643,1774749043113,-500.0,0.00015274,2]
[419010644,1774749043123,-644.46167473,0.00015274,2]
[419010646,1774749043133,-150.0,0.00015274,2]
[419010647,1774749043142,-151.72119789,0.00015274,2]
[419010649,1774749043151,-500.0,0.00015274,2]
[419010650,1774749043161,-500.0,0.00015274,2]
[419010651,1774749043172,-500.0,0.00015274,2]
[419010652,1774749043183,-500.0,0.00015274,2]
[419010654,1774749043192,-500.0,0.00015274,2]
[419010656,1774749043202,-500.0,0.00015274,2]
[419010657,1774749043211,-482.0,0.00015274,2]
[419010658,1774749043222,-500.0,0.00015274,2]
[419010659,1774749043232,-500.0,0.00015274,2]
[419010660,1774749043242,-482.0,0.00015274,2]
[419010661,1774749043252,-500.0,0.00015274,2]
[419010662,1774749043263,-500.0,0.00015274,2]
[419010663,1774749043273,-482.0,0.00015274,2]
[419010664,1774749043284,-500.0,0.00015274,2]
[419010665,1774749043294,-500.0,0.00015274,2]
[419010666,1774749043304,-500.0,0.00015274,2]
[419010667,1774749043314,-482.0,0.00015274,2]
[419010668,1774749043324,-500.0,0.00015274,2]
[419010669,1774749043334,-500.0,0.00015274,2]
[419010670,1774749043344,-500.0,0.00015274,2]
[419010671,1774749043353,-500.0,0.00015274,2]
[419010672,1774749043363,-482.0,0.00015274,2]
[419010673,1774749043373,-500.0,0.00015274,2]
[419010674,1774749043383,-500.0,0.00015274,2]
[419010675,1774749043393,-482.0,0.00015274,2]
[419010676,1774749043402,-500.0,0.00015274,2]
[419010677,1774749043413,-500.0,0.00015274,2]
[419010678,1774749043423,-197.98424333,0.00015274,2]
[419010679,1774749043433,-500.0,0.00015274,2]
[419010680,1774749043443,-482.0,0.00015274,2]
[419010681,1774749043453,-150.0,0.00015274,2]
[419010682,1774749043464,-500.0,0.00015274,2]
[419010683,1774749043474,-482.0,0.00015274,2]
[419010684,1774749043484,-500.0,0.00015274,2]
[419010685,1774749043494,-482.0,0.00015274,2]
[419010686,1774749043504,-500.0,0.00015274,2]
[419010687,1774749043516,-482.0,0.00015274,2]
[419010688,1774749043526,-500.0,0.00015274,2]
[419010689,1774749043536,-482.0,0.00015274,2]
[419010690,1774749043546,-500.0,0.00015274,2]
[419010691,1774749043556,-482.0,0.00015274,2]
[419010692,1774749043567,-500.0,0.00015274,2]
[419010693,1774749043577,-482.0,0.00015274,2]
[419010694,1774749043588,-500.0,0.00015274,2]
[419010695,1774749043598,-500.0,0.00015274,2]
[419010696,1774749043608,-482.0,0.00015274,2]
[419010697,1774749043618,-500.0,0.00015274,2]
[419010698,1774749043628,-500.0,0.00015274,2]
[419010699,1774749043638,-500.0,0.00015274,2]
[419010700,1774749043649,-482.0,0.00015274,2]
[419010701,1774749043658,-500.0,0.00015274,2]
[419010702,1774749043668,-500.0,0.00015274,2]
[419010703,1774749043679,-482.0,0.00015274,2]
[419010704,1774749043689,-500.0,0.00015274,2]
[419010705,1774749043699,-500.0,0.00015274,2]
[419010706,1774749043708,-500.0,0.00015274,2]
[419010707,1774749043718,-500.0,0.00015274,2]
[419010708,1774749043728,-482.0,0.00015274,2]
[419010709,1774749043738,-500.0,0.00015274,2]
[419010710,1774749043747,-500.0,0.00015274,2]
[419010711,1774749043758,-500.0,0.00015274,2]
[419010712,1774749043768,-500.0,0.00015274,2]
[419010713,1774749043778,-482.0,0.00015274,2]
[419010714,1774749043788,-500.0,0.00015274,2]
[419010715,1774749043798,-500.0,0.00015274,2]
[419010716,1774749043808,-500.0,0.00015274,2]
[419010717,1774749043817,-500.0,0.00015274,2]
[419010718,1774749043827,-448.85541599,0.00015274,2]
[419010719,1774749043836,-500.0,0.00015274,2]
[419010720,1774749043847,-500.0,0.00015274,2]
[419010721,1774749043856,-500.0,0.00015274,2]
[419010722,1774749043867,-500.0,0.00015274,2]
[419010723,1774749043876,-500.0,0.00015274,2]
[419010724,1774749043887,-500.0,0.00015274,2]
[419010725,1774749043898,-500.0,0.00015274,2]
[419010726,1774749043908,-500.0,0.00015274,2]
[419010727,1774749043918,-482.0,0.00015274,2]
[419010728,1774749043929,-500.0,0.00015274,2]
[419010729,1774749043940,-500.0,0.00015274,2]
[419010730,1774749043950,-500.0,0.00015274,2]
[419010731,1774749043960,-150.0,0.00015274,2]
[419010732,1774749043972,-500.0,0.00015274,2]
[419010733,1774749043982,-500.0,0.00015274,2]
[419010734,1774749043992,-500.0,0.00015274,2]
[419010735,1774749044002,-500.0,0.00015274,2]
[419010736,1774749044012,-500.0,0.00015274,2]
[419010737,1774749044022,-500.0,0.00015274,2]
[419010738,1774749044032,-500.0,0.00015274,2]
[419010739,1774749044042,-500.0,0.00015274,2]
[419010740,1774749044052,-500.0,0.00015274,2]
[419010741,1774749044063,-500.0,0.00015274,2]
[419010742,1774749044073,-500.0,0.00015274,2]
[419010743,1774749044083,-500.0,0.00015274,2]
[419010744,1774749044092,-313.21374152,0.00015274,2]
[419010745,1774749044102,-500.0,0.00015274,2]
[419010746,1774749044113,-482.0,0.00015274,2]
[419010747,1774749044123,-362.44585243,0.00015274,2]
[419010748,1774749044132,-354.37247743,0.00015274,2]
[419010749,1774749044142,-482.0,0.00015274,2]
[419010750,1774749044152,-704.0,0.00015274,2]
[419010751,1774749044162,-500.0,0.00015274,2]
[419010752,1774749044172,-500.0,0.00015274,2]
[419010753,1774749044183,-704.0,0.00015274,2]
[419010754,1774749044194,-500.0,0.00015274,2]
[419010755,1774749044204,-500.0,0.00015274,2]
[419010756,1774749044214,-704.0,0.00015274,2]
[419010757,1774749044224,-500.0,0.00015274,2]
[419010759,1774749044234,-704.0,0.00015274,2]
[419010760,1774749044245,-500.0,0.00015274,2]
[419010761,1774749044255,-500.0,0.00015274,2]
[419010762,1774749044267,-704.0,0.00015274,2]
[419010763,1774749044277,-500.0,0.00015274,2]
[419010764,1774749044287,-704.0,0.00015274,2]
[419010765,1774749044297,-500.0,0.00015274,2]
[419010766,1774749044307,-500.0,0.00015274,2]
[419010767,1774749044318,-704.0,0.00015274,2]
[419010768,1774749044327,-500.0,0.00015274,2]
[419010769,1774749044338,-221.42926466,0.00015274,2]
[419010770,1774749044347,-704.0,0.00015274,2]
[419010771,1774749044357,-482.0,0.00015274,2]
[419010772,1774749044366,-219.10448352,0.00015274,2]
[419010773,1774749044376,-704.0,0.00015274,2]
[419010774,1774749044385,-704.0,0.00015274,2]
[419010775,1774749044394,-429.0,0.00015274,2]
[419010776,1774749044405,-704.0,0.00015274,2]
[419010777,1774749044415,-429.0,0.00015274,2]
[419010778,1774749044424,-704.0,0.00015274,2]
[419010779,1774749044434,-500.0,0.00015274,2]
[419010780,1774749044444,-429.0,0.00015274,2]
[419010781,1774749044454,-704.0,0.00015274,2]
[419010782,1774749044464,-429.0,0.00015274,2]
[419010783,1774749044474,-500.0,0.00015274,2]
[419010784,1774749044484,-704.0,0.00015274,2]
[419010785,1774749044494,-500.0,0.00015274,2]
[419010786,1774749044503,-429.0,0.00015274,2]
[419010787,1774749044514,-500.0,0.00015274,2]
[419010788,1774749044524,-704.0,0.00015274,2]
[419010789,1774749044534,-414.92841658,0.00015274,2]
[419010790,1774749044543,-429.0,0.00015274,2]
[419010791,1774749044552,-500.0,0.00015274,2]
[419010792,1774749044563,-704.0,0.00015274,2]
[419010793,1774749044572,-429.0,0.00015274,2]
[419010794,1774749044583,-500.0,0.00015274,2]
[419010795,1774749044594,-429.0,0.00015274,2]
[419010796,1774749044603,-500.0,0.00015274,2]
[419010797,1774749044613,-429.0,0.00015274,2]
[419010798,1774749044623,-704.0,0.00015274,2]
[419010799,1774749044633,-500.0,0.00015274,2]
[419010800,1774749044643,-500.0,0.00015274,2]
[419010801,1774749044737,-429.0,0.00015274,2]
[419010802,1774749044746,-500.0,0.00015274,2]
[419010803,1774749044756,-429.0,0.00015274,2]
[419010804,1774749044767,-500.0,0.00015274,2]
[419010805,1774749044777,-482.0,0.00015274,2]
[419010806,1774749044787,-429.0,0.00015274,2]
[419010807,1774749044798,-500.0,0.00015274,2]
[419010808,1774749044807,-429.0,0.00015274,2]
[419010809,1774749044817,-704.0,0.00015274,2]
[419010810,1774749044827,-429.0,0.00015274,2]
[419010811,1774749044837,-583.94965812,0.00015274,2]
[419010812,1774749044846,-429.0,0.00015274,2]
[419010813,1774749044856,-429.0,0.00015274,2]
[419010814,1774749044865,-500.0,0.00015274,2]
[419010815,1774749044875,-429.0,0.00015274,2]
[419010816,1774749044884,-500.0,0.00015274,2]
[419010817,1774749044894,-704.0,0.00015274,2]
[419010818,1774749044904,-390.7556468,0.00015274,2]
[419010819,1774749044913,-429.0,0.00015274,2]
[419010820,1774749044923,-333.59520152,0.00015274,2]
[419010821,1774749044932,-150.0,0.00015274,2]
[419010822,1774749044941,-704.0,0.00015274,2]
[419010823,1774749044950,-429.0,0.00015274,2]
[419010824,1774749044960,-216.9963302,0.00015274,2]
[419010825,1774749044969,-429.0,0.00015274,2]
[419010826,1774749044979,-704.0,0.00015274,2]
[419010827,1774749044988,-150.0,0.00015274,2]
[419010828,1774749044998,-429.0,0.00015274,2]
[419010829,1774749045008,-704.0,0.00015274,2]
[419010830,1774749045017,-429.0,0.00015274,2]
[419010831,1774749045027,-704.0,0.00015274,2]
[419010832,1774749045037,-429.0,0.00015274,2]
[419010833,1774749045047,-707.6946264,0.00015274,2]
[419010834,1774749045056,-452.93669017,0.00015274,2]
[419010835,1774749045066,-500.0,0.00015277,2]
[419010836,1774749045075,-500.0,0.00015277,2]
[419010837,1774749045084,-500.0,0.00015277,2]
[419010838,1774749045094,-500.0,0.00015277,2]
[419010839,1774749045103,-500.0,0.00015277,2]
[419010840,1774749045115,-500.0,0.00015277,2]
[419010841,1774749045124,-500.0,0.00015277,2]
[419010842,1774749045133,-500.0,0.00015277,2]
[419010843,1774749045143,-500.0,0.00015277,2]
[419010844,1774749045153,-500.0,0.00015277,2]
[419010845,1774749045163,-500.0,0.00015277,2]
[419010846,1774749045172,-150.0,0.00015277,2]
[419010847,1774749045181,-500.0,0.00015277,2]
[419010848,1774749045190,-500.0,0.00015277,2]
[419010849,1774749045199,-150.0,0.00015277,2]
[419010850,1774749045208,-500.0,0.00015277,2]
[419010851,1774749045218,-500.0,0.00015277,2]
[419010852,1774749045227,-500.0,0.00015277,2]
[419010853,1774749045237,-500.0,0.00015277,2]
[419010854,1774749045247,-500.0,0.00015277,2]
[419010855,1774749045257,-500.0,0.00015277,2]
[419010856,1774749045266,-500.0,0.00015277,2]
[419010857,1774749045276,-500.0,0.00015277,2]
[419010858,1774749045286,-500.0,0.00015277,2]
[419010859,1774749045295,-150.0,0.00015277,2]
[419010860,1774749045304,-500.0,0.00015277,2]
[419010861,1774749045315,-483.29461098,0.00015277,2]
[419010862,1774749045324,-500.0,0.00015277,2]
[419010863,1774749045334,-500.0,0.00015277,2]
[419010864,1774749045343,-500.0,0.00015277,2]
[419010865,1774749045353,-500.0,0.00015277,2]
[419010866,1774749045363,-150.0,0.00015277,2]
[419010867,1774749045374,-500.0,0.00015277,2]
[419010868,1774749045384,-152.53186786,0.00015277,2]
[419010869,1774749045394,-500.0,0.00015277,2]
[419010870,1774749045403,-150.0,0.00015277,2]
[419010871,1774749045413,-500.0,0.00015277,2]
[419010872,1774749045423,-250.0,0.00015277,2]
[419010873,1774749045433,-500.0,0.00015277,2]
[419010874,1774749045443,-500.0,0.00015277,2]
[419010875,1774749045455,-500.0,0.00015277,2]
[419010876,1774749045465,-500.0,0.00015277,2]
[419010877,1774749045475,-508.56311436,0.00015277,2]
[419010878,1774749045485,-500.0,0.00015277,2]
[419010879,1774749045495,-500.0,0.00015277,2]
[419010880,1774749045505,-490.0,0.00015277,2]
[419010881,1774749045515,-500.0,0.00015277,2]
[419010882,1774749045524,-500.0,0.00015277,2]
[419010883,1774749045534,-490.0,0.00015277,2]
[419010884,1774749045544,-503.95632491,0.00015277,2]
[419010885,1774749045555,-500.0,0.00015277,2]
[419010886,1774749045565,-490.0,0.00015277,2]
[419010887,1774749045575,-490.0,0.00015277,2]
[419010888,1774749045585,-490.0,0.00015277,2]
[419010889,1774749045596,-500.0,0.00015277,2]
[419010890,1774749045606,-490.0,0.00015277,2]
[419010891,1774749045616,-490.0,0.00015277,2]
[419010892,1774749045627,-490.0,0.00015277,2]
[419010893,1774749045637,-490.0,0.00015277,2]
[419010894,1774749045647,-490.0,0.00015277,2]
[419010895,1774749045657,-500.0,0.00015277,2]
[419010896,1774749045668,-490.0,0.00015277,2]
[419010897,1774749045678,-490.0,0.00015277,2]
[419010898,1774749045688,-490.0,0.00015277,2]
[419010899,1774749045698,-490.0,0.00015277,2]
[419010900,1774749045708,-490.0,0.00015277,2]
[419010901,1774749045718,-474.21241056,0.00015277,2]
[419010902,1774749045728,-490.0,0.00015277,2]
[419010903,1774749045738,-490.0,0.00015277,2]
[419010904,1774749045747,-490.0,0.00015277,2]
[419010905,1774749045757,-490.0,0.00015277,2]
[419010906,1774749045767,-490.0,0.00015277,2]
[419010907,1774749045776,-490.0,0.00015277,2]
[419010908,1774749045786,-490.0,0.00015277,2]
[419010909,1774749045796,-490.0,0.00015277,2]
[419010910,1774749045805,-492.58098477,0.00015277,2]
[419010911,1774749045815,-151.0,0.00015277,2]
[419010912,1774749045824,-151.0,0.00015277,2]
[419010913,1774749045834,-151.0,0.00015277,2]
[419010914,1774749045843,-150.0,0.0001528,2]
[419010915,1774749045852,-150.0,0.0001528,2]
[419010916,1774749045863,-150.0,0.0001528,2]
[419010917,1774749045873,-500.0,0.0001528,2]
[419010918,1774749045882,-158.3155795,0.0001528,2]
[419010919,1774749045892,-284.07676272,0.0001528,2]
[419010920,1774749045901,-500.0,0.0001528,2]
[419010921,1774749045911,-500.0,0.0001528,2]
[419010922,1774749045921,-500.0,0.0001528,2]
[419010923,1774749045931,-500.0,0.0001528,2]
[419010924,1774749045941,-500.0,0.0001528,2]
[419010925,1774749045952,-500.0,0.0001528,2]
[419010926,1774749045961,-500.0,0.0001528,2]
[419010927,1774749045971,-500.0,0.0001528,2]
[419010928,1774749045980,-500.0,0.0001528,2]
[419010929,1774749045989,-500.0,0.0001528,2]
[419010930,1774749045999,-500.0,0.0001528,2]
[419010931,1774749046009,-500.0,0.0001528,2]
[419010932,1774749046018,-500.0,0.0001528,2]
[419010933,1774749046028,-153.40286809,0.0001528,2]
[419010934,1774749046038,-383.60720851,0.0001528,2]
[419010935,1774749046047,-153.80550818,0.00015289,2]
[419010936,1774749046057,-468.95,0.000153,2]
[419010937,1774749046066,-2900.0,0.00015316,5]
[419010938,1774749046076,-582.06877023,0.00015342,2]
[419010939,1774749046086,-2000.0,0.00015342,2]
[419010940,1774749046095,-889.39669243,0.00015342,2]
[419010941,1774749046104,-466.69355566,0.00015342,2]
[419010942,1774749046114,-2000.0,0.00015342,2]
[419010943,1774749046123,-151.0,0.00015363,2]
[419010944,1774749046132,-154.53434814,0.00015411,2]
[419010945,1774749046142,-153.725362,0.00015417,2]
[419010946,1774749046151,-586.1110983,0.00015433,2]
[419010947,1774749046161,-6053.4404014,0.00015433,2]
[419010948,1774749046170,-3576.4048144,0.00015433,2]
[419010949,1774749046180,-4298.3698949,0.00015433,2]
[419010950,1774749046189,-171.310555,0.00015438,7]
[419010951,1774749046199,-291.29906,0.00015438,7]
[419010952,1774749046209,-12600.0,0.000155,5]
[419010953,1774749046218,-280.909101,0.000155,2]
[419010954,1774749046227,-280.909101,0.000155,2]
[419010955,1774749046238,-280.909101,0.000155,2]
[419010956,1774749046247,-280.909101,0.000155,2]
[419010957,1774749046256,-4000.0,0.00015507,2]
[419010958,1774749046266,-1375.0,0.00015571,2]
[419010959,1774749046275,-3743.0,0.00015571,2]
[419010960,1774749046285,-3743.0,0.0001558,2]
[419010961,1774749046295,-3743.0,0.00015588,2]
[419010962,1774749046304,-151.0,0.00015597,2]
[419010963,1774749046314,-162.64,0.00015597,2]
[419010964,1774749046325,-956.17,0.000156,2]
[419010965,1774749046335,-2500.0,0.000156,5]
[419010966,1774749046344,-503.557746,0.00015637,2]
[419010967,1774749046354,-503.557746,0.00015637,2]
[419010968,1774749046363,-503.557746,0.00015637,2]
[419010969,1774749046373,-503.557746,0.00015637,2]
[419010970,1774749046462,-3743.0,0.00015637,2]
[419010971,1774749046472,-3743.0,0.00015657,2]
[419010972,1774749046481,-626.33,0.000157,2]
[419010973,1774749046491,-2500.0,0.000157,5]
[419010974,1774749046500,-3743.0,0.00015734,2]
[419010975,1774749046509,-1324.0,0.00015753,2]
[419010976,1774749046518,-1600.0,0.00015759,2]
[419010977,1774749046528,-151.0,0.00015779,2]
[419010978,1774749046537,-151.0,0.00015779,2]
[419010979,1774749046546,-151.0,0.00015779,2]
[419010980,1774749046557,-151.0,0.00015779,2]
[419010981,1774749046566,-3743.0,0.00015779,2]
[419010982,1774749046576,-3743.0,0.0001578,2]
[419010983,1774749046585,-3743.0,0.00015785,2]
[419010984,1774749046595,-2500.0,0.000158,5]
[419010985,1774749046604,-336.27617275,0.000158,2]
[419010986,1774749046613,-11631.30149341,0.000158,2]
[419010987,1774749046623,-350.0,0.0001582,2]
[419010988,1774749046634,-11631.30149336,0.0001582,2]
[419010989,1774749046645,-3743.0,0.00015821,2]
[419010990,1774749046656,-11631.30149336,0.0001584,2]
[419010991,1774749046666,-336.27617273,0.0001585,2]
[419010992,1774749046676,-350.0,0.00015855,2]
[419010993,1774749046686,-11631.30149336,0.0001586,2]
[419010994,1774749046696,-3743.0,0.00015866,2]
[419010995,1774749046705,-11631.30149336,0.0001588,2]
[419010996,1774749046714,-2000.0,0.0001589,2]
[419010997,1774749046724,-1502.6659376,0.0001589,2]
[419010998,1774749046734,-1503.49998468,0.0001589,2]
[419010999,1774749046744,-4000.0,0.00015895,2]
[419011000,1774749046755,-152.38150712,0.000159,2]
[419011001,1774749046765,-1372.94811729,0.000159,2]
[419011002,1774749046775,-2500.0,0.000159,5]
[419011003,1774749046787,-151.48434886,0.000159,2]
[419011004,1774749046797,-336.27617273,0.000159,2]
[419011005,1774749046808,-24396.99021331,0.000159,2]
[419011006,1774749046819,-1452.81147643,0.000159,2]
[419011007,1774749046831,-11631.30149336,0.000159,2]
[419011008,1774749046841,-15141.6701045,0.00015921,2]
[419011009,1774749046852,-3743.0,0.00015923,2]
[419011010,1774749046863,-5000.0,0.0001596,2]
[419011011,1774749046873,-3743.0,0.0001596,2]
[419011012,1774749046883,-3743.0,0.00015965,2]
[419011013,1774749046894,-700.0,0.0001597,2]
[419011014,1774749046905,-700.0,0.0001597,2]
[419011015,1774749046915,-854.65118905,0.0001597,2]
[419011016,1774749046926,-3743.0,0.0001597,2]
[419011017,1774749046936,-301.27465414,0.0001599,2]
[419011018,1774749046948,-301.27465414,0.0001599,2]
[419011019,1774749046959,-3743.0,0.00015996,2]
[419011020,1774749046969,-151.0,0.00015997,2]
[419011021,1774749046980,-677.2242101,0.00015999,2]
[419011022,1774749046989,-666.0,0.00015999,2]
[419011024,1774749046999,-204273.27414099,0.00016,2]
[419011026,1774749047010,-3277797.40157755,0.00016,2]
[419011051,1774749047282,-277.1987,0.00016,2]
[419011053,1774749047300,-606.20166325,0.00016,2]
[419011056,1774749047318,-4783.16358,0.00016,2]
[419011058,1774749047336,-662.08474513,0.00016,2]
[419011061,1774749047352,-1386.70499995,0.00016,2]
[419011069,1774749047427,-4362.25192,0.00011451,2]
[419011072,1774749047442,-5038.18168835,0.00011451,2]
[419011075,1774749047463,-931.86771549,0.00011451,2]
[419011077,1774749047477,-837.35383664,0.00011451,2]
[419011081,1774749047508,-21829.85709262,0.00011451,2]
[419011083,1774749047519,-19219.35070298,0.00016,2]
[419011087,1774749047638,-41326.6846784,0.00016,2]
[419011088,1774749047672,-4392.93624703,0.00016,2]
[419011089,1774749047698,-22173.87398188,0.00016,2]
[419011090,1774749048541,-83179.37286058,0.00016,2]
[419011091,1774749048556,-107995.612,0.00016,2]
[419011092,1774749048567,-11718.36974591,0.00016,2]
[419011093,1774749048586,-813.13481789,0.00016,2]
[419011095,1774749510269,150.0,0.00011267,2]
[419011096,1774749524641,1600.0,0.0001118,2]
[419011097,1774749673426,500.0,0.00010981,2]
[419011099,1774749725507,-1024.55,0.00010924,2]
[419011102,1774749799638,1364.2161,0.00017,60]
[419011103,1774749835312,839.6113,0.00017,60]
[419011108,1774750000776,182.11,0.00010691,2]
[419011109,1774750032623,-166.66,0.00010959,2]
[419011110,1774750032653,-250.0,0.00011014,2]
[419011111,1774750032683,-166.66,0.00011068,2]
[419011112,1774750032713,-166.66,0.00011178,2]
[419011113,1774750032743,-166.66,0.00011288,2]
[419011114,1774750057985,605.22327867,8e-05,2]
[419011115,1774750061841,7561.50672133,0.00011,2]
[419011116,1774750061863,1924.90592457,0.00011,2]
[419011118,1774750084011,150.0,0.00010959,2]
[419011120,1774750189366,393.87851549,7.888e-05,2]
[419011127,1774750232160,-1943.97891656,0.0001,2]
[419011129,1774750232169,-770.80283462,0.0001,2]
[419011131,1774750232222,-5.67504529,0.0001,2]
[419011132,1774750232234,-320.35667763,0.00010696,2]
[419011133,1774750232247,-3248.41634028,0.00010696,2]
[419011134,1774750232272,-459.07834486,0.00010696,2]
[419011135,1774750232283,-1014.94547973,0.00010696,2]
[419011136,1774750232293,-294.74216393,0.00011,2]
[419011137,1774750232304,-951.1048631,0.00011,2]
[419011138,1774750232323,-267.37735194,0.00011,2]
[419011139,1774750232336,-852.41220014,0.00011,2]
[419011140,1774750232350,-424.84285358,0.00011,2]
[419011141,1774750232362,-2209.52056731,0.00011,2]
[419011142,1774750232373,-193.46705196,0.00011,2]
[419011143,1774750232383,-500.0,0.00011326,4]
[419011144,1774750232395,-241.52781665,0.00011326,4]
[419011145,1774750232413,-258.47218335,0.00011326,4]
[419011146,1774750232423,-84.82074179,0.00011326,4]
[419011147,1774750232436,-415.17925821,0.00011326,4]
[419011148,1774750232447,-291.64489496,0.00011326,4]
[419011149,1774750232458,-208.35510504,0.00011326,4]
[419011150,1774750232468,-300.0,0.0001139,2]
[419011151,1774750232479,-1200.0,0.0001139,2]
[419011152,1774750232489,-300.0,0.00011391,2]
[419011153,1774750232498,-197.02013038,0.00011392,2]
[419011154,1774750232509,-161.80850657,0.00011392,2]
[419011155,1774750232520,-166.66,0.00011397,2]
[419011156,1774750232532,-2500.0,0.000115,4]
[419011157,1774750232543,-161.80850657,0.00011504,2]
[419011159,1774750232552,-166.66,0.00011507,2]
[419011161,1774750232561,-150.0,0.00011569,2]
[419011163,1774750232571,-132.676419,0.0001157,3]
[419011165,1774750232583,-367.323581,0.0001157,3]
[419011166,1774750232593,-500.0,0.0001157,3]
[419011167,1774750232603,-500.0,0.0001157,3]
[419011169,1774750232613,-500.0,0.0001157,3]
[419011171,1774750232622,-500.0,0.0001157,3]
[419011173,1774750232631,-487.597054,0.0001157,3]
[419011176,1774750232644,-12.402946,0.0001157,3]
[419011178,1774750232654,-500.0,0.0001157,3]
[419011180,1774750232663,-187.95855744,0.0001157,3]
[419011183,1774750232682,-312.04144256,0.0001157,3]
[419011184,1774750232692,-500.0,0.0001157,3]
[419011186,1774750232701,-500.0,0.0001157,3]
[419011188,1774750232711,-500.0,0.0001157,3]
[419011189,1774750232721,-500.0,0.0001157,3]
[419011190,1774750232731,-630.59484516,0.0001157,3]
[419011191,1774750232740,-500.0,0.0001157,3]
[419011192,1774750232749,-500.0,0.0001157,3]
[419011193,1774750232758,-500.0,0.0001157,3]
[419011194,1774750232769,-500.0,0.0001157,3]
[419011195,1774750232779,-500.0,0.0001157,3]
[419011196,1774750232789,-500.0,0.0001157,3]
[419011197,1774750232800,-500.0,0.0001157,3]
[419011198,1774750232810,-644.46167473,0.0001157,3]
[419011199,1774750232820,-500.0,0.0001157,3]
[419011200,1774750232829,-500.0,0.0001157,3]
[419011201,1774750232842,-500.0,0.0001157,3]
[419011202,1774750232853,-521.46914168,0.0001157,3]
[419011203,1774750232862,-500.0,0.00011573,2]
[419011204,1774750232871,-500.0,0.00011573,2]
[419011205,1774750232880,-500.0,0.00011573,2]
[419011206,1774750232889,-500.0,0.00011573,2]
[419011207,1774750232899,-500.0,0.00011573,2]
[419011208,1774750232908,-500.44548801,0.00011573,2]
[419011209,1774750232918,-500.0,0.00011573,2]
[419011210,1774750232927,-500.64843314,0.00011573,2]
[419011211,1774750232936,-500.0,0.00011573,2]
[419011212,1774750232946,-500.0,0.00011573,2]
[419011213,1774750232956,-169.92418884,0.00011573,2]
[419011214,1774750232966,-500.0,0.00011573,2]
[419011215,1774750232975,-502.6541819,0.00011573,2]
[419011216,1774750232984,-500.32969063,0.00011573,2]
[419011217,1774750232993,-500.22919119,0.00011573,2]
[419011218,1774750233005,-500.0,0.00011573,2]
[419011219,1774750233015,-500.0756086,0.00011573,2]
[419011220,1774750233025,-500.0,0.00011573,2]
[419011221,1774750233034,-500.0,0.00011573,2]
[419011222,1774750233045,-500.0,0.00011573,2]
[419011223,1774750233055,-500.0,0.00011573,2]